fUST/lending_fUST_20250429
["ID","MTS","AMOUNT","RATE_DAILY","PERIOD"]
[359289541,1745894663821,-150.5,0.0004197,120]
[359289542,1745894663846,-150.5,0.0004197,120]
[359289543,1745894663872,-1550.0,0.0004197,120]
[359289544,1745894663898,-1550.0,0.0004197,120]
[359289545,1745894663922,-150.5,0.0004198,120]
[359289546,1745894663947,-150.5,0.0004198,120]
[359289547,1745894663972,-219.48,0.0004198,120]
[359289548,1745894663996,-196.52,0.0004198,120]
[359289549,1745894664020,-1550.0,0.0004198,120]
[359289550,1745894664044,-1550.0,0.0004198,120]
[359289551,1745894664069,-1550.0,0.0004198,120]
[359289552,1745894664093,-1552.48,0.0004198,120]
[359289553,1745894664118,-150.5,0.0004199,120]
[359289554,1745894664142,-150.5,0.0004199,120]
[359289555,1745894664166,-150.5,0.0004199,120]
[359289556,1745894664190,-150.5,0.0004199,120]
[359289557,1745894664214,-1550.0,0.0004199,120]
[359289558,1745894664238,-1550.0,0.0004199,120]
[359289559,1745894664263,-1550.0,0.0004199,120]
[359289560,1745894664288,-1550.0,0.0004199,120]
[359289561,1745894664316,-20000.0,0.00042,42]
[359289562,1745894664341,-678.19128078,0.00042,120]
[359289563,1745894664368,-1092.91520924,0.00042,30]
[359289564,1745894664394,-150.0,0.00042,120]
[359289565,1745894664418,-500.0,0.00042,30]
[359289566,1745894664444,-300.0,0.00042,120]
[359289567,1745894664468,-1097.10784623,0.00042,120]
[359289568,1745894664492,-95850.0,0.00042,30]
[359289569,1745894664515,-42218.0,0.00042,30]
[359289570,1745894664539,-100000.0,0.00042,30]
[359289571,1745894664562,-100000.0,0.00042,30]
[359289572,1745894664586,-200.89940398,0.00042,120]
[359289573,1745894664610,-2051.18,0.00042,60]
[359289574,1745894664633,-849.53,0.00042023,120]
[359289575,1745894664662,-200.0,0.00042171,120]
[359289576,1745894664686,-849.53,0.00042173,120]
[359289577,1745894664710,-849.53,0.00042323,120]
[359289578,1745894664734,-776.59,0.00042465,32]
[359289579,1745894664758,-849.53,0.00042473,120]
[359289580,1745894664782,-2000.0,0.000425,120]
[359289581,1745894664806,-2000.0,0.000425,120]
[359289582,1745894664830,-2000.0,0.000425,120]
[359289583,1745894664855,-2000.0,0.000425,120]
[359289584,1745894664879,-2000.0,0.000425,120]
[359289585,1745894664904,-2000.0,0.000425,120]
[359289586,1745894664928,-2000.0,0.000425,120]
[359289587,1745894664952,-2000.0,0.000425,120]
[359289588,1745894664977,-2000.0,0.000425,120]
[359289589,1745894665002,-2000.0,0.000425,120]
[359289590,1745894665027,-2000.0,0.000425,120]
[359289591,1745894665052,-849.53,0.00042623,120]
[359289592,1745894665077,-849.53,0.00042773,120]
[359289593,1745894665102,-224.45,0.000428,120]
[359289594,1745894665126,-849.53,0.00042923,120]
[359289595,1745894665152,-20000.0,0.00043,43]
[359289596,1745894665178,-3480.45408228,0.00043,120]
[359289597,1745894665202,-1000.0,0.00043,60]
[359289598,1745894665225,-1303.126369,0.00043,120]
[359289599,1745894665249,-269.54500722,0.00043,30]
[359289600,1745894665274,-331.4978925,0.00043,120]
[359289601,1745894665297,-376.60480117,0.00043,120]
[359289602,1745894665322,-776.59,0.00043013,33]
[359289603,1745894665346,-849.53,0.00043073,120]
[359289604,1745894665370,-849.53,0.00043223,120]
[359289605,1745894665395,-604.441,0.0004325,67]
[359289606,1745894665421,-849.53,0.00043373,120]
[359289607,1745894665446,-200.0,0.00043463,120]
[359289608,1745894665471,-2000.0,0.000435,120]
[359289609,1745894665495,-2000.0,0.000435,120]
[359289610,1745894665520,-2000.0,0.000435,120]
[359289611,1745894665545,-2000.0,0.000435,120]
[359289612,1745894665569,-849.53,0.00043523,120]
[359289613,1745894665593,-776.59,0.00043561,34]
[359289614,1745894665618,-849.53,0.00043673,120]
[359289615,1745894665644,-1000.0,0.000438,90]
[359289616,1745894665668,-849.53,0.00043823,120]
[359289617,1745894665694,-1000.0,0.00043835,120]
[359289618,1745894665719,-1000.0,0.00043835,120]
[359289619,1745894665744,-1000.0,0.00043835,120]
[359289620,1745894665769,-1000.0,0.00043835,120]
[359289621,1745894665792,-971.1920006,0.00043835,120]
[359289622,1745894665817,-19611.0,0.00043836,120]
[359289623,1745894665841,-152.8326381,0.0004384,120]
[359289624,1745894665866,-152.8326381,0.0004384,120]
[359289625,1745894665889,-152.8326381,0.0004384,120]
[359289626,1745894666104,-152.8326381,0.0004384,120]
[359289627,1745894666130,-152.8326381,0.0004384,120]
[359289628,1745894666154,-152.8326381,0.0004384,120]
[359289629,1745894666180,-152.8326381,0.0004384,120]
[359289630,1745894666203,-152.8326381,0.0004384,120]
[359289631,1745894666229,-152.8326381,0.0004384,120]
[359289632,1745894666252,-152.8326381,0.0004384,120]
[359289633,1745894666281,-152.8326381,0.0004384,120]
[359289634,1745894666307,-152.8326381,0.0004384,120]
[359289635,1745894666332,-152.8326381,0.0004384,120]
[359289636,1745894666357,-152.8326381,0.0004384,120]
[359289637,1745894666380,-152.83,0.0004384,120]
[359289638,1745894666406,-267.45711668,0.0004384,120]
[359289639,1745894666431,-267.45711668,0.0004384,120]
[359289640,1745894666456,-267.45711668,0.0004384,120]
[359289641,1745894666481,-267.45711668,0.0004384,120]
[359289642,1745894666505,-267.45711668,0.0004384,120]
[359289643,1745894666528,-267.45711668,0.0004384,120]
[359289644,1745894666552,-267.45711668,0.0004384,120]
[359289645,1745894666575,-267.45711668,0.0004384,120]
[359289646,1745894666601,-267.45711668,0.0004384,120]
[359289647,1745894666625,-267.45711668,0.0004384,120]
[359289648,1745894666649,-267.45711668,0.0004384,120]
[359289649,1745894666672,-267.45711668,0.0004384,120]
[359289650,1745894666696,-267.45711668,0.0004384,120]
[359289651,1745894666721,-267.45711668,0.0004384,120]
[359289652,1745894666745,-267.45711668,0.0004384,120]
[359289653,1745894666768,-267.45711668,0.0004384,120]
[359289654,1745894666792,-267.45711668,0.0004384,120]
[359289655,1745894666816,-267.45711668,0.0004384,120]
[359289656,1745894666840,-267.45711668,0.0004384,120]
[359289657,1745894666866,-267.45,0.0004384,120]
[359289658,1745894666890,-159.61747829,0.0004384,120]
[359289659,1745894666914,-159.61747829,0.0004384,120]
[359289660,1745894666938,-159.61747829,0.0004384,120]
[359289661,1745894666962,-159.61747829,0.0004384,120]
[359289662,1745894666986,-159.61747829,0.0004384,120]
[359289663,1745894667011,-159.61747829,0.0004384,120]
[359289664,1745894667036,-159.61747829,0.0004384,120]
[359289665,1745894667060,-159.61747829,0.0004384,120]
[359289666,1745894667084,-159.61747829,0.0004384,120]
[359289667,1745894667109,-159.61747829,0.0004384,120]
[359289668,1745894667135,-159.61747829,0.0004384,120]
[359289669,1745894667159,-159.61747829,0.0004384,120]
[359289670,1745894667184,-159.61747829,0.0004384,120]
[359289671,1745894667208,-159.61747829,0.0004384,120]
[359289672,1745894667232,-159.61747829,0.0004384,120]
[359289673,1745894667256,-159.61747829,0.0004384,120]
[359289674,1745894667280,-159.61747829,0.0004384,120]
[359289675,1745894667304,-159.61747829,0.0004384,120]
[359289676,1745894667327,-159.61747829,0.0004384,120]
[359289677,1745894667351,-159.61,0.0004384,120]
[359289678,1745894667377,-372.44078267,0.0004384,120]
[359289679,1745894667401,-372.44078267,0.0004384,120]
[359289680,1745894667424,-372.44078267,0.0004384,120]
[359289681,1745894667447,-372.44078267,0.0004384,120]
[359289682,1745894667470,-372.44078267,0.0004384,120]
[359289683,1745894667493,-372.44078267,0.0004384,120]
[359289684,1745894667516,-372.44078267,0.0004384,120]
[359289685,1745894667540,-372.44078267,0.0004384,120]
[359289686,1745894667564,-372.44078267,0.0004384,120]
[359289687,1745894667588,-372.44078267,0.0004384,120]
[359289688,1745894667614,-372.44078267,0.0004384,120]
[359289689,1745894667639,-372.44078267,0.0004384,120]
[359289690,1745894667665,-372.44078267,0.0004384,120]
[359289691,1745894667691,-372.44078267,0.0004384,120]
[359289692,1745894667715,-372.44078267,0.0004384,120]
[359289693,1745894667741,-372.44078267,0.0004384,120]
[359289694,1745894667766,-372.44078267,0.0004384,120]
[359289695,1745894667790,-372.44078267,0.0004384,120]
[359289696,1745894667814,-372.44078267,0.0004384,120]
[359289697,1745894667838,-372.44,0.0004384,120]
[359289698,1745894667862,-296.49798354,0.0004384,120]
[359289699,1745894667885,-296.49798354,0.0004384,120]
[359289700,1745894667909,-296.49798354,0.0004384,120]
[359289701,1745894667932,-296.49798354,0.0004384,120]
[359289702,1745894667955,-296.49798354,0.0004384,120]
[359289703,1745894667979,-296.49798354,0.0004384,120]
[359289704,1745894668002,-296.49798354,0.0004384,120]
[359289705,1745894668026,-296.49798354,0.0004384,120]
[359289706,1745894668050,-296.49798354,0.0004384,120]
[359289707,1745894668075,-296.49798354,0.0004384,120]
[359289708,1745894668099,-296.49798354,0.0004384,120]
[359289709,1745894668123,-296.49798354,0.0004384,120]
[359289710,1745894668148,-296.49798354,0.0004384,120]
[359289711,1745894668173,-296.49798354,0.0004384,120]
[359289712,1745894668197,-296.49798354,0.0004384,120]
[359289713,1745894668220,-296.49798354,0.0004384,120]
[359289714,1745894668243,-296.49798354,0.0004384,120]
[359289715,1745894668265,-296.49798354,0.0004384,120]
[359289716,1745894668287,-296.49798354,0.0004384,120]
[359289717,1745894668310,-296.49,0.0004384,120]
[359289718,1745894668332,-691.82862826,0.0004384,120]
[359289719,1745894668354,-691.82862826,0.0004384,120]
[359289720,1745894668378,-691.82862826,0.0004384,120]
[359289721,1745894668545,-691.82862826,0.0004384,120]
[359289722,1745894668570,-691.82862826,0.0004384,120]
[359289723,1745894668593,-691.82862826,0.0004384,120]
[359289724,1745894668616,-691.82862826,0.0004384,120]
[359289725,1745894668639,-691.82862826,0.0004384,120]
[359289726,1745894668665,-691.82862826,0.0004384,120]
[359289727,1745894668690,-691.82862826,0.0004384,120]
[359289728,1745894668714,-691.82862826,0.0004384,120]
[359289729,1745894668738,-691.82862826,0.0004384,120]
[359289730,1745894668762,-691.82862826,0.0004384,120]
[359289731,1745894668786,-691.82862826,0.0004384,120]
[359289732,1745894668811,-691.82862826,0.0004384,120]
[359289733,1745894668836,-691.82862826,0.0004384,120]
[359289734,1745894668861,-691.82862826,0.0004384,120]
[359289735,1745894668885,-691.82862826,0.0004384,120]
[359289736,1745894668909,-691.82862826,0.0004384,120]
[359289737,1745894668933,-691.82,0.0004384,120]
[359289738,1745894668958,-312253.82679353,0.000439,120]
[359289739,1745894668982,-849.53,0.00043973,120]
[359289740,1745894669008,-20000.0,0.00044,44]
[359289741,1745894669033,-2415.49227945,0.00044,30]
[359289742,1745894669059,-300.0,0.00044,120]
[359289743,1745894669082,-776.59,0.00044109,35]
[359289744,1745894669108,-849.53,0.00044123,120]
[359289745,1745894669133,-200.0,0.00044204,120]
[359289746,1745894669158,-849.53,0.00044273,120]
[359289747,1745894669183,-849.53,0.00044423,120]
[359289748,1745894669207,-2000.0,0.000445,120]
[359289749,1745894669234,-2000.0,0.000445,120]
[359289750,1745894669258,-2000.0,0.000445,120]
[359289751,1745894669282,-2000.0,0.000445,120]
[359289752,1745894669307,-2000.0,0.000445,120]
[359289753,1745894669333,-2000.0,0.000445,120]
[359289754,1745894669363,-849.53,0.00044573,120]
[359289755,1745894669392,-776.59,0.00044657,36]
[359289756,1745894669421,-849.53,0.00044723,120]
[359289757,1745894669447,-849.53,0.00044873,120]
[359289758,1745894669472,-60798.19486582,0.000449,120]
[359289759,1745894669497,-1000.0,0.000449,120]
[359289760,1745894669522,-200.0,0.00044973,120]
[359289761,1745894669549,-20000.0,0.00045,45]
[359289762,1745894669574,-151.0,0.00045,120]
[359289763,1745894669598,-500.0,0.00045,120]
[359289764,1745894669623,-2234.42968734,0.00045,60]
[359289765,1745894669649,-2779.86742172,0.00045,120]
[359289766,1745894669675,-288.47609935,0.00045,120]
[359289767,1745894669699,-200.67012879,0.00045,90]
[359289768,1745894669724,-5197.96486587,0.00045,120]
[359289769,1745894669749,-1225.5394058,0.00045,120]
[359289770,1745894669773,-200.0,0.00045,30]
[359289771,1745894669798,-2003.0,0.00045,120]
[359289772,1745894669822,-2000.0,0.00045,120]
[359289773,1745894669846,-200.0,0.00045,60]
[359289774,1745894669870,-1344.0705,0.00045,120]
[359289775,1745894669895,-160.63804872,0.00045,120]
[359289776,1745894669920,-849.53,0.00045023,120]
[359289777,1745894669945,-200.0,0.00045087,120]
[359289778,1745894669968,-3039.0541313,0.000451,30]
[359289779,1745894669993,-849.53,0.00045173,120]
[359289780,1745894670017,-776.59,0.00045205,37]
[359289781,1745894670040,-849.53,0.00045323,120]
[359289782,1745894670065,-200.0,0.00045334,120]
[359289783,1745894670089,-849.53,0.00045473,120]
[359289784,1745894670117,-2000.0,0.000455,120]
[359289785,1745894670141,-2000.0,0.000455,120]
[359289786,1745894670166,-1413.82003105,0.000456,120]
[359289787,1745894670191,-849.53,0.00045623,120]
[359289788,1745894670215,-200.0,0.00045717,120]
[359289789,1745894670244,-776.59,0.00045753,38]
[359289790,1745894670268,-849.53,0.00045773,120]
[359289791,1745894670294,-200.0,0.00045844,120]
[359289792,1745894670318,-315.15243417,0.000459,120]
[359289793,1745894670342,-849.53,0.00045923,120]
[359289794,1745894670369,-20000.0,0.00046,46]
[359289795,1745894670394,-3325.7340273,0.00046,120]
[359289796,1745894670419,-1368.28733686,0.00046,120]
[359289797,1745894670447,-300.0,0.00046,120]
[359289798,1745894670472,-200.0,0.00046,60]
[359289799,1745894670499,-849.53,0.00046073,120]
[359289800,1745894670525,-849.53,0.00046223,120]
[359289801,1745894670551,-776.59,0.00046301,39]
[359289802,1745894670575,-849.53,0.00046373,120]
[359289803,1745894670601,-849.53,0.00046523,120]
[359289804,1745894670625,-1000.0,0.00046575,120]
[359289805,1745894670651,-1000.0,0.00046602,120]
[359289806,1745894670676,-1000.0,0.0004663,120]
[359289807,1745894670702,-1000.0,0.00046657,120]
[359289808,1745894670726,-849.53,0.00046673,120]
[359289809,1745894670752,-1000.0,0.00046684,120]
[359289810,1745894670777,-1000.0,0.00046712,120]
[359289811,1745894670802,-1000.0,0.00046739,120]
[359289812,1745894670827,-1000.0,0.00046767,120]
[359289813,1745894670853,-1000.0,0.00046794,120]
[359289814,1745894670878,-4308.44707964,0.000468,90]
[359289815,1745894670903,-1000.0,0.00046821,120]
[359289816,1745894671089,-849.53,0.00046823,120]
[359289817,1745894671117,-776.59,0.00046849,40]
[359289818,1745894671143,-1000.0,0.00046849,120]
[359289819,1745894671169,-1000.0,0.00046876,120]
[359289820,1745894671195,-1000.0,0.00046904,120]
[359289821,1745894671220,-1000.0,0.00046931,120]
[359289822,1745894671245,-1000.0,0.00046958,120]
[359289823,1745894671270,-849.53,0.00046973,120]
[359289824,1745894671294,-1000.0,0.00046986,120]
[359289825,1745894671320,-20000.0,0.00047,47]
[359289826,1745894671342,-950.67151616,0.00047,120]
[359289827,1745894671367,-291.22405206,0.00047,120]
[359289828,1745894671390,-200.0,0.00047,60]
[359289829,1745894671415,-1000.0,0.00047013,120]
[359289830,1745894671440,-659.27075832,0.00047041,120]
[359289831,1745894671465,-849.53,0.00047123,120]
[359289832,1745894671489,-849.53,0.00047273,120]
[359289833,1745894671514,-776.59,0.00047397,41]
[359289834,1745894671538,-849.53,0.00047423,120]
[359289835,1745894671563,-200.0,0.000475,120]
[359289836,1745894671588,-849.53,0.00047573,120]
[359289837,1745894671615,-2780.39739035,0.000477,120]
[359289838,1745894671639,-849.53,0.00047723,120]
[359289839,1745894671667,-200.0,0.00047731,120]
[359289840,1745894671693,-849.53,0.00047873,120]
[359289841,1745894671720,-222.4020566,0.000479,120]
[359289842,1745894671746,-776.59,0.00047945,42]
[359289843,1745894671775,-20000.0,0.00048,48]
[359289844,1745894671800,-2468.0,0.00048,120]
[359289845,1745894671826,-2000.0,0.00048,60]
[359289846,1745894671853,-300.0,0.00048,120]
[359289847,1745894671881,-200.0,0.00048,60]
[359289848,1745894671906,-6177.1148627,0.00048,120]
[359289849,1745894671931,-849.53,0.00048023,120]
[359289850,1745894671956,-849.53,0.00048173,120]
[359289851,1745894671984,-200.0,0.00048222,120]
[359289852,1745894672010,-849.53,0.00048323,120]
[359289853,1745894672035,-4195.68477012,0.00048398,120]
[359289854,1745894672060,-849.53,0.00048473,120]
[359289855,1745894672084,-776.59,0.00048493,43]
[359289856,1745894672111,-849.53,0.00048623,120]
[359289857,1745894672136,-849.53,0.00048773,120]
[359289858,1745894672162,-407.56984428,0.000489,30]
[359289859,1745894672188,-849.53,0.00048923,120]
[359289860,1745894672216,-20000.0,0.00049,49]
[359289861,1745894672240,-186.72595423,0.00049,120]
[359289862,1745894672266,-2744.71127686,0.00049,120]
[359289863,1745894672290,-200.0,0.00049,60]
[359289864,1745894672314,-934.21,0.00049007,30]
[359289865,1745894672338,-200.0,0.00049039,120]
[359289866,1745894672364,-776.59,0.00049041,44]
[359289867,1745894672390,-849.53,0.00049073,120]
[359289868,1745894672417,-849.53,0.00049223,120]
[359289869,1745894672441,-3000.0,0.00049313,120]
[359289870,1745894672468,-849.53,0.00049373,120]
[359289871,1745894672495,-849.53,0.00049523,120]
[359289872,1745894672522,-200.0,0.00049529,120]
[359289873,1745894672547,-3000.0,0.00049587,120]
[359289874,1745894672571,-776.59,0.00049589,45]
[359289875,1745894672596,-849.53,0.00049673,120]
[359289876,1745894672623,-374.18124746,0.0004968,120]
[359289877,1745894672650,-1020.07,0.00049693,30]
[359289878,1745894672671,-849.53,0.00049823,120]
[359289879,1745894672695,-3000.0,0.00049861,120]
[359289880,1745894672719,-500.0,0.000499,120]
[359289881,1745894672746,-849.53,0.00049973,120]
[359289882,1745894672766,-500.0,0.0004999,30]
[359289883,1745894672793,-20000.0,0.0005,50]
[359289884,1745894672818,-500.0,0.0005,30]
[359289885,1745894672844,-539.37827197,0.0005,120]
[359289886,1745894672871,-411.24861581,0.0005,120]
[359289887,1745894672897,-20629.42222799,0.0005,120]
[359289888,1745894672923,-480.91,0.0005,120]
[359289889,1745894672949,-160.0,0.0005,91]
[359289890,1745894672976,-300.0,0.0005,120]
[359289891,1745894673001,-2000.0,0.0005,120]
[359289892,1745894673027,-2000.0,0.0005,120]
[359289893,1745894673057,-200.0,0.0005,60]
[359289894,1745894673084,-2000.0,0.0005,30]
[359289895,1745894673113,-861.89036526,0.0005,120]
[359289896,1745894673141,-252.52038536,0.0005,120]
[359289897,1745894673177,-2310.0,0.0005,120]
[359289898,1745894673208,-849.53,0.00050123,120]
[359289899,1745894673236,-3000.0,0.00050135,120]
[359289900,1745894673265,-776.59,0.00050136,46]
[359289901,1745894673292,-200.0,0.00050162,120]
[359289902,1745894673320,-403.0,0.0005026,120]
[359289903,1745894673348,-849.53,0.00050273,120]
[359289904,1745894673376,-3000.0,0.00050409,120]
[359289905,1745894673405,-849.53,0.00050423,120]
[359289906,1745894673433,-2000.0,0.000505,120]
[359289907,1745894673460,-849.53,0.00050573,120]
[359289908,1745894673492,-3000.0,0.00050683,120]
[359289909,1745894673519,-776.59,0.00050684,47]
[359289910,1745894673549,-849.53,0.00050723,120]
[359289911,1745894673731,-200.0,0.00050777,120]
[359289912,1745894673760,-849.53,0.00050873,120]
[359289913,1745894673788,-3000.0,0.00050957,120]
[359289914,1745894673816,-200.0,0.00051,30]
[359289915,1745894673842,-270.29793074,0.00051,60]
[359289916,1745894673871,-510770.01581595,0.00051,120]
[359289917,1745894680079,-160.0,0.00025,30]
[359289918,1745894680134,-160.0,0.0004,120]
[359289919,1745894680167,-160.0,0.0005,30]
[359289920,1745894680192,-1536839.21418405,0.00051,120]
[359289921,1745894680217,-250696.38,0.00051,120]
[359289922,1745894680242,-160.0,0.00051,93]
[359289923,1745894680266,-111824.40581595,0.00051,30]
[359289924,1745894684753,-151536.94418405,0.00051,30]
[359289925,1745894684778,-3000.0,0.00051,85]
[359289926,1745894684803,-2200.0,0.00051,30]
[359289927,1745894684827,-3000.0,0.0005101,85]
[359289928,1745894684851,-3000.0,0.0005102,85]
[359289929,1745894684876,-849.53,0.00051023,120]
[359289930,1745894684899,-3000.0,0.0005103,85]
[359289931,1745894684925,-3000.0,0.0005104,85]
[359289932,1745894684952,-45094.58,0.0005105,120]
[359289933,1745894684978,-3000.0,0.0005105,85]
[359289934,1745894685004,-3000.0,0.0005106,85]
[359289935,1745894685030,-3000.0,0.0005107,85]
[359289936,1745894685055,-3092.887725,0.0005108,85]
[359289937,1745894685080,-58026.6,0.000511,120]
[359289938,1745894685106,-849.53,0.00051173,120]
[359289939,1745894685131,-3000.0,0.00051231,120]
[359289940,1745894685158,-776.59,0.00051232,48]
[359289941,1745894685183,-850.1480277,0.00051323,120]
[359289942,1745894685207,-2000.0,0.000515,120]
[359289943,1745894685232,-3000.0,0.00051505,120]
[359289944,1745894685256,-3000.0,0.00051779,120]
[359289945,1745894685280,-776.59,0.0005178,49]
[359289946,1745894685304,-266.33313284,0.0005188,30]
[359289947,1745894685328,-1000.0,0.00051999,120]
[359289948,1745894685354,-160.0,0.00052,96]
[359289949,1745894685380,-300.0,0.00052,120]
[359289950,1745894685405,-431.0,0.00052,90]
[359289951,1745894685429,-3000.0,0.00052053,120]
[359289952,1745894685454,-999.0,0.00052054,120]
[359289953,1745894685478,-3000.0,0.00052327,120]
[359289954,1745894685501,-776.59,0.00052328,50]
[359289955,1745894685525,-2000.0,0.000525,120]
[359289956,1745894685549,-3020.32732819,0.000525,120]
[359289957,1745894685573,-200.0,0.00052537,120]
[359289958,1745894685597,-3000.0,0.00052601,120]
[359289959,1745894685623,-200.0,0.00052609,120]
[359289960,1745894685649,-3000.0,0.00052875,120]
[359289961,1745894685677,-776.59,0.00052876,51]
[359289962,1745894685702,-160.0,0.00053,99]
[359289963,1745894685726,-3000.0,0.00053149,120]
[359289964,1745894685752,-403.0,0.0005326,120]
[359289965,1745894685776,-3000.0,0.00053423,120]
[359289966,1745894685800,-776.59,0.00053424,52]
[359289967,1745894685825,-2000.0,0.000535,120]
[359289968,1745894685850,-200.0,0.00053678,120]
[359289969,1745894685874,-3000.0,0.00053697,120]
[359289970,1745894685899,-200.0,0.00053946,120]
[359289971,1745894685923,-3000.0,0.00053971,120]
[359289972,1745894685946,-776.69808345,0.00053972,53]
[359289973,1745894685970,-594.67,0.0005399,60]
[359289974,1745894685994,-1254.3341648,0.00054,60]
[359289975,1745894686018,-1117.53190873,0.00054,120]
[359289976,1745894686043,-680.03162245,0.00054,120]
[359289977,1745894686067,-567.8065996,0.00054,120]
[359289978,1745894686091,-160.0,0.00054,102]
[359289979,1745894686117,-300.0,0.00054,120]
[359289980,1745894686141,-2308.49650929,0.00054,120]
[359289981,1745894686167,-201.0,0.00054,120]
[359289982,1745894686194,-619.60170034,0.00054321,120]
[359289983,1745894686220,-151.0,0.00054495,120]
[359289984,1745894686247,-223.38865448,0.00054495,120]
[359289985,1745894686271,-151.90986369,0.00054495,120]
[359289986,1745894686297,-151.29536955,0.00054495,120]
[359289987,1745894686321,-153.61458658,0.00054495,120]
[359289988,1745894686345,-500.0,0.00054495,120]
[359289989,1745894686369,-500.0,0.00054495,120]
[359289990,1745894686396,-500.0,0.00054495,120]
[359289991,1745894686424,-500.0,0.00054495,120]
[359289992,1745894686448,-500.0,0.00054495,120]
[359289993,1745894686473,-500.0,0.00054495,120]
[359289994,1745894686497,-500.0,0.00054495,120]
[359289995,1745894686522,-500.0,0.00054495,120]
[359289996,1745894686547,-500.0,0.00054495,120]
[359289997,1745894686572,-500.0,0.00054495,120]
[359289998,1745894686597,-500.0,0.00054495,120]
[359289999,1745894686622,-200.36265317,0.00054495,120]
[359290000,1745894686649,-151.0,0.00054495,120]
[359290001,1745894686678,-151.0,0.00054495,120]
[359290002,1745894686706,-151.0,0.00054495,120]
[359290003,1745894686731,-151.0,0.00054495,120]
[359290004,1745894686755,-243.67707198,0.00054495,120]
[359290005,1745894686779,-151.0,0.00054495,120]
[359290006,1745894686803,-151.0,0.00054495,120]
[359290007,1745894686826,-151.0,0.00054495,120]
[359290008,1745894687015,-155.07304646,0.00054495,120]
[359290009,1745894687044,-2000.0,0.000545,120]
[359290010,1745894687071,-1800.0,0.000545,120]
[359290011,1745894687096,-3000.0,0.00054519,120]
[359290012,1745894687121,-1000.0,0.00054739,90]
[359290013,1745894687147,-1000.0,0.00054739,90]
[359290014,1745894687177,-1000.0,0.00054739,90]
[359290015,1745894687204,-1000.0,0.00054739,90]
[359290016,1745894687231,-1000.0,0.00054739,90]
[359290017,1745894687255,-1000.0,0.00054739,90]
[359290018,1745894687279,-1000.0,0.00054739,90]
[359290019,1745894687304,-1000.0,0.00054739,90]
[359290020,1745894687329,-1000.0,0.00054739,90]
[359290021,1745894687353,-1000.0,0.00054739,90]
[359290022,1745894687378,-1000.0,0.00054739,90]
[359290023,1745894687403,-1000.0,0.00054739,90]
[359290024,1745894687427,-1000.0,0.00054739,90]
[359290025,1745894687451,-1000.0,0.00054739,90]
[359290026,1745894687477,-389.55058838,0.00054739,90]
[359290027,1745894687501,-154.16579131,0.00054794,120]
[359290028,1745894688781,648.5,0.00030344,30]
[359290029,1745894688863,2200.0,0.00054794,120]
[359290031,1745894818193,-283.3484,0.000265,120]
[359290032,1745894818240,-294.48,0.0004108,120]
[359290033,1745894818265,-150.5,0.0004109,120]
[359290034,1745894818294,-376.60480117,0.00043,120]
[359290035,1745894818319,-151.0,0.00045,120]
[359290036,1745894818347,-403.0,0.0005026,120]
[359290037,1745894818373,-999.0,0.00052054,120]
[359290038,1745894818398,-1500.0,0.00052601,120]
[359290039,1745894818423,-1500.0,0.00052875,120]
[359290040,1745894818448,-1500.0,0.00053149,120]
[359290041,1745894818472,-403.0,0.0005326,120]